Cogmind - Beta 16 @@@ ROGUE MODE // 2025.11.30 @ 20:56:24 Player: GLC Result: Destroyed by S-10 Pest via exploding Fusion Modulator Performance ------------- Evolutions (0) 0 Regions Visited (1) 200 Robots Destroyed (31) 155 Value Destroyed (544) 544 Prototype IDs (2) 40 Alien Tech Used (0) 0 Bonus (0) 0 TOTAL SCORE: 939 Bonus ------- None Cogmind --------- Core Integrity 0/250 Matter 295/300 Energy 259/265 System Corruption 0% Temperature Hot (249) Movement Rolling (95) Ox1 Location -10/Materials Parts ------- > --- POWER (1) -------- Improved Ion Engine > --- PROPULSION (2) --- Wheel > --- UTILITY (2) ------ Medium Storage Unit > --- WEAPON (2) ------- Small Laser > --- INVENTORY (10) --- Improved Ion Engine Wheel Heat Sink Cooling System Small Laser Small Laser Beam Cannon Light Assault Rifle Mining Laser Peak State ------------ > --- POWER ------------ Improved Ion Engine > --- PROPULSION ------- Wheel Wheel > --- UTILITY ---------- Medium Storage Unit Visual Processing Unit > --- WEAPON ----------- Small Laser Small Laser > --- INVENTORY -------- Improved Ion Engine Compact Wheel Heat Sink Heat Sink Cooling System Small Laser Small Laser Light Assault Rifle Mining Laser [Rating: 10] Favorites ----------- Power Improved Ion Engine Engine Improved Ion Engine Propulsion Wheel Wheel Wheel Utility Medium Storage Unit Device ECM Suite Storage Medium Storage Unit Processor Visual Processing Unit Weapon Small Laser Energy Gun Small Laser Energy Cannon Beam Cannon Ballistic Gun Light Assault Rifle Build | -11 -10 ------- Run | Yrd Mat Slots Evolved . | . . Power . | . . Propulsion . | . . Utility . | . . Weapon . | . . Parts Attached 30 | 6 24 Power 5 | 1 4 Engine 5 | 1 4 Core . | . . Reactor . | . . Propulsion 10 | 2 8 Treads . | . . Leg . | . . Wheel 10 | 2 8 Hover . | . . Flight . | . . Utility 6 | 1 5 Device 3 | . 3 Storage 2 | 1 1 Processor 1 | . 1 Hackware . | . . Protection . | . . Artifact . | . . Weapon 9 | 2 7 Energy Gun 5 | 1 4 Energy Cannon 1 | . 1 Ballistic Gun 3 | 1 2 Ballistic Cannon . | . . Launcher . | . . Special Weapon . | . . Impact Weapon . | . . Slashing Weapon . | . . Piercing Weapon . | . . Special Melee Weapon . | . . Unidentified Prototypes . | . . Parts Lost 8 | . 8 Power . | . . Propulsion 5 | . 5 Utility 2 | . 2 Weapon 1 | . 1 Highest Loss Streak 4 | . 4 To Critical Strikes 1 | . 1 Average Backups 7 | 1 8 Power . | . . Propulsion 1 | 1 1 Utility 2 | . 2 Weapon 2 | . 3 Tool/Special . | . . Unused Backups 8 | . 8 Power 2 | . 2 Propulsion 2 | . 2 Utility 2 | . 2 Weapon 2 | . 2 Tool/Special . | . . Average Slot Usage (%) 97 | . 97 Engine 14 | . 14 Wheel 27 | . 27 Device 10 | . 10 Storage 14 | . 14 Processor 1 | . 1 Energy Gun 24 | . 24 Ballistic Gun 2 | . 2 Peak Build Rating 10 | 6 10 Average Rating 7 | 5 8 On Entrance 3 | . 6 Avg Prop Armor Cover (%) . | . . Naked Turns . | . . Heaviest Build 22 | 12 22 Greatest Support 20 | 20 20 Greatest Overweight (x) 2 | 1 2 Average Overweight (x) . | . . Largest Inventory Capacity 10 | 8 10 Average Capacity 9 | 7 9 Most Carried 10 | 3 10 Average Carried 7 | 1 8 Final Capacity 10 | 8 10 Final Carried 9 | 3 9 Class Distribution -------------------- 69% | Scavenger-Mutant 30% | Mutant Dominant Class ---------------- Scavenger-Mutant | -10/Materials Resources | -11 -10 ----------- Run | Yrd Mat Matter Collected 582 | 279 303 Remotely . | . . Salvage Created 1088 | 174 914 Parts 62 | 14 48 Haulers Intercepted 1 | . 1 Recyclers Shooed . | . . Parts Field Recycled . | . . Retrieved Matter . | . . Parts Self-Destructed . | . . Prevented . | . . Parts Restored . | . . Kills | -11 -10 ------- Run | Yrd Mat Combat Hostiles Destroyed 14 | . 14 Guns 10 | . 10 Cannons 4 | . 4 Classes Destroyed 8 | 3 5 Worker 6 | 2 4 Builder 1 | . 1 Tunneler 3 | 3 . Hauler 1 | . 1 Recycler 4 | 1 3 Watcher 2 | . 2 Swarmer 2 | . 2 Grunt 12 | . 12 Best Kill Streak 5 | 5 3 Combat Bots Only 2 | . 2 Max Kills in Single Turn 1 | 1 1 Gunslinging . | . . Exploded . | . . Melee . | . . Uniques/NPCs Destroyed . | . . Combat | -11 -10 -------- Run | Yrd Mat Hostile Shots Fired 144 | . 144 Missed 40 | . 40 Hits 104 | . 104 Projectile 104 | . 104 AOE 1 | . 1 Critical Strikes 1 | . 1 Damage Taken 1181 | . 1181 Core 312 | . 312 Absorbed by Shields . | . . Core Remaining (%) 100 | 100 . Volleys Fired 105 | 19 86 Largest 2 | 2 2 Hottest 105 | 60 105 Shots Fired 207 | 36 171 Gun 200 | 36 164 Cannon 7 | . 7 Launcher . | . . Special . | . . Kinetic 35 | 19 16 Thermal 172 | 17 155 Explosive . | . . Electromagnetic . | . . Robot Hit Streak 10 | 6 10 Robot Miss Streak 8 | 3 8 Penetration Max . | . . Secondary Targets 3 | . 3 Max Gunslinging Chain 1 | . 1 Shots Hit Robots 110 | 19 91 Core Hits 52 | 9 43 Critical Kills . | . . Critical Parts Destroyed . | . . Critical Strikes . | . . Melee Attacks . | . . Impact . | . . Slashing . | . . Piercing . | . . Sneak Attacks . | . . Combat Hostiles . | . . Follow-up Attacks . | . . Damage Inflicted 1276 | 172 1104 Guns 1154 | 172 982 Cannons 122 | . 122 Explosions . | . . Melee . | . . Ramming . | . . Kinetic 157 | 94 63 Thermal 1119 | 78 1041 Explosive . | . . Electromagnetic . | . . Impact . | . . Slashing . | . . Piercing . | . . Highest Corruption . | . . Average Corruption . | . . Corruption Purged . | . . Corruption Blocked . | . . Overload Shots . | . . Overflow Damage . | . . Projectiles . | . . Explosions . | . . Melee . | . . Knockbacks . | . . Impact . | . . Kinetic . | . . Secondary . | . . Self-Inflicted Damage . | . . Shots . | . . Rammed . | . . Targets Rammed . | . . Kicked . | . . Crushed . | . . Highest Temperature 265 | 40 265 Average Temperature 61 | 16 66 Received Heat Transfer 462 | . 462 Siege Activations . | . . Martial Activations . | . . Shielding Activations . | . . Robots Disrupted . | . . Combat Hostiles . | . . Robots Corrupted . | . . Combat Hostiles . | . . Parts Fried . | . . Impact Corruptions . | . . Robots Melted . | . . Combat Hostiles . | . . Parts Melted 1 | . 1 Heat Transferred 2507 | 175 2332 Parts Sabotaged . | . . Parts Stolen . | . . Parts Stripped . | . . Power Chain Reactions . | . . Alert | -11 -10 ------- Run | Yrd Mat Maximum Alert Level . | . . Low Security (%) 100 | 100 100 Level 1 . | . . Level 2 . | . . Level 3 . | . . Level 4 . | . . Level 5 . | . . High Security . | . . Max Security . | . . Peak Influence 125 | 10 125 Initial . | . . Average 21 | 1 23 Influence Increases 503 | 30 473 Destroy 0b10 Robot/C 280 | . 280 Destroy 0b10 Robot/NC 85 | 30 55 Destroy Leader 76 | . 76 Successful Hack 2 | . 2 Lose Combat Pursuer 60 | . 60 Influence Decreases 388 | 30 358 Time Decay 328 | 30 298 Lost Part 60 | . 60 Squads Dispatched 5 | . 5 Investigation 4 | . 4 Extermination . | . . Reinforcement 1 | . 1 Assault . | . . Garrison . | . . Intercept . | . . Searches Triggered . | . . Construction Impeded . | . . Haulers Reinforced . | . . Active Scanning Responses . | . . Cargo Convoy Interrupts . | . . Stealth | -11 -10 --------- Run | Yrd Mat Distress Signals 1 | . 1 Communications Jammed . | . . Distress Signals . | . . Times Spotted 34 | . 34 Peak Tracking Total 3 | . 3 Tactical Retreats 8 | . 8 ECM-based Alert Blocks 11 | . 11 Traps | -11 -10 ------- Run | Yrd Mat Traps Triggered 3 | . 3 Indirectly . | . . Trap Hack Attempts . | . . Triggered . | . . Disarmed . | . . Reprogrammed . | . . Reused . | . . Traps Extracted . | . . Installed . | . . Triggered . | . . Machines | -11 -10 ---------- Run | Yrd Mat Machines Disabled . | . . Max in Single Turn . | . . Machines Repaired . | . . Machines Dismantled . | . . Machines Sabotaged . | . . Overloaded Fab Kills . | . . Hacking | -11 -10 --------- Run | Yrd Mat Machines Accessed 3 | . 3 Terminals 2 | . 2 Fabricators . | . . Repair Stations . | . . Recycling Units 1 | . 1 Scanalyzers . | . . Garrison Access . | . . Total Hacks 10 | . 10 Successful 6 | . 6 Failed 4 | . 4 Catastrophic 1 | . 1 Database Lockouts . | . . Manual . | . . Terminals 6 | . 6 Fabricators . | . . Repair Stations . | . . Recycling Units 4 | . 4 Scanalyzers . | . . Garrison Access . | . . Terminal Hacks 3 | . 3 Record 1 | . 1 Prototype ID Bank 1 | . 1 Dispatch Records 1 | . 1 Fabricator Hacks . | . . Repair Station Hacks . | . . Recycling Unit Hacks 3 | . 3 Process 1 | . 1 Retrieve Matter 1 | . 1 Retrieve Components 1 | . 1 Scanalyzer . | . . Garrison Access Hacks . | . . Unauthorized Hacks . | . . Terminals . | . . Fabricators . | . . Repair Stations . | . . Recycling Units . | . . Scanalyzers . | . . Garrison Access . | . . Data Cores Recovered . | . . Used . | . . Hacking Detections 2 | . 2 Full Trace Events 1 | . 1 Feedback Events . | . . Feedback Blocked . | . . Robot Schematics Acquired . | . . Robots Built . | . . Authchips . | . . Time . | . . Total Robot Build Rating . | . . Part Schematics Acquired . | . . Parts Built . | . . Authchips . | . . Time . | . . Total Part Build Rating . | . . Part Studies Acquired . | . . Parts Repaired . | . . Time . | . . Parts Recycled . | . . Recycled Matter 7 | . 7 Retrieved Matter 7 | . 7 Retrieved Components . | . . Parts Scanalyzed . | . . Part Schematics Acquired . | . . Parts Damaged . | . . Bothacking | -11 -10 ------------ Run | Yrd Mat Used RIF Installer . | . . Robots Hacked . | . . Non-combat . | . . Combat . | . . Robot Hacks Applied . | . . Relay Couplers Released . | . . Fabnet Peak Effective % . | . . Robots Rewired . | . . Allies Hacked . | . . Hacks Repelled . | . . Allies | -11 -10 -------- Run | Yrd Mat Total Allies . | . . Largest Group . | . . Highest-Rated Group . | . . Highest-Rated Ally . | . . Total Orders . | . . Ally Attacks . | . . Total Damage . | . . Kills . | . . Allies Corrupted . | . . Allies Melted . | . . Intel | -11 -10 ------- Run | Yrd Mat Active Infowar (turns) 940 | . 940 Optics 155 | . 155 Seismic 38 | . 38 ECM 747 | . 747 Robot Analysis Total . | . . Derelict Logs Recovered . | . . Drone Launches . | . . Drone Recoveries . | . . Exploration | -11 -10 ------------- Run | Yrd Mat Turns Passed 1381 | 168 1213 Spaces Moved 1156 | 117 1039 Core 3 | 3 . Treads . | . . Legs . | . . Wheels 1153 | 114 1039 Hover . | . . Flight . | . . Fastest Speed 50 | 50 80 Average Speed 85 | 86 85 Slowest Speed 110 | 95 110 Overloaded Moves . | . . Propulsion Burnouts . | . . Robots Hopped . | . . Potential Cave-ins . | . . Cave-ins Triggered . | . . Exploration Rate (%) 35 | 5 66 Regions Visited 1 Branch Regions . Pre-discovered Areas . | . . Known Exits Taken . | . . Unknown Exits Taken 1 | 1 . Scrap Searched . | . . Spaces Dug . | . . Terrain Destroyed . | . . Melee . | . . Projectile . | . . AOE . | . . Terrain Rammed . | . . Walls Destroyed . | . . Machines Disabled . | . . Actions | -11 -10 --------- Run | Yrd Mat Total 1354 | 150 1204 Wait . | . . Move 1155 | 116 1039 Hop . | . . Pick Up 37 | 9 28 Fast Attach 2 | . 2 Attach 15 | 6 9 Detach . | . . Swap 21 | . 21 Drop 19 | . 19 Fire 105 | 19 86 Melee . | . . Ram . | . . Kick . | . . Crush . | . . Escape Stasis . | . . Rewire . | . . Trap . | . . Miscellaneous . | . . Route ------- -11/Scrapyard -10/Materials (discovered 3 exits: [*Mat] / [*Min] / [*Sub]) History --------- Turn | Location | Event 2 | -11/Scrapyard | Met Revision 17 15 | -11/Scrapyard | Discovered new exit (range 16) 169 | -11/Scrapyard | Entered Materials 212 | -10/Materials | Discovered new exit (range 15) 305 | -10/Materials | Build established: Mutant 702 | -10/Materials | Build established: Scavenger-Mutant 717 | -10/Materials | Discovered new exit (range 8) 718 | -10/Materials | Discovered new exit (range 8) 986 | -10/Materials | Core integrity fell below 50% 1369 | -10/Materials | Core integrity fell below 20% 1382 | -10/Materials | Destroyed by S-10 Pest via exploding Fusion Modulator Last Messages --------------- Acquired Wheel. Dropped Wheel. Acquired Wheel. Acquired 20 matter. G-34 Mercenary destroyed. K-01 Serf collects debris. K-01 Serf destroyed. G-47 Trooper destroyed. Acquired 10 matter. Dropped Sml. Laser. Acquired Particle Gun. Acquired 10 matter. Critical hit (Destroy). Wheel destroyed. Heat Sink destroyed. Wheel destroyed. S-10 Pest destroyed. K-01 Serf collects debris. Fusion Modulator explodes. Particle Gun destroyed. Map ----- +----------------------------------------------------+ | ???????# ######??????????# # #???????? | | ???????# # #######???############ #???????? | | ?#####?# %# !| # ##### #### #####+### | | ##"T"### # !| # | | # # # + < | | # !!! # # # | | # !!! + + # ##### ##+#########+### | | # !!! # # ## ##???# " "!" # T #??????? | | # # ###+### #????#""|"!""# #??????? | | # # #????######### #??????? | | ####+### #????????????# [ #??????? | | ## #?# % #????????????# #??????? | | " ## #?# ####+#### #????????????# """ #??????? | | " ## ###% ## ## #????????????# """ #??????? | | " # % ## """ ## #????????????# """ #??????? | | %+ % + """ ## #????????????# #??????? | | " # % ## """ ## #????????????# #??????? | | " ##+######## ## ##############+##########???? | | " # # ## | | %# # = ## | | ### ######## | | ### #??????# = """ """ """ | | ###+############## %! """ """ """ ####+ | | =%= """= """ """ #???? | | [ % =%* [% #???? | | @ [ s k #???? | | ###################+###;##;##### #???? | | ##?????????????# #??????# ????? | | #??????????????#! #??????+ ?????? | | #??????????????# #??????? """ ????? | | #??????????????# """ """ #??????? """ ????? | | #??????????????# """ """ #??????? ""?? #???? | | #??????????????# """ """ #??????? ?????????? | | #??????????????# #??????? ?????????? | | ##??????????????# #???????? ?????????? | | ?????????????????##########????????####??????????? | | ?????????????????????????????????????????????????? | | ?????????????????????????????????????????????????? | | ?????????????????????????????????????????????????? | | ?????????????????????????????????????????????????? | | ?????????????????????????????????????????????????? | | ?????????????????????????????????????????????????? | | ?????????????????????????????????????????????????? | | | | | | | | | | | | | | | +----------------------------------------------------+ Best States ------------- Heat Dissipation 35 Energy Generation 12 Energy Capacity 265 Matter Stores 300 Matter Capacity 300 Sight Range 18 Terrain Scan Density 10 ECM Strength 1 Evasion (%) 44 Item Schematics ----------------- None Robot Schematics ------------------ None Fabricated ------------ Nothing Repaired ---------- Nothing Studied --------- None Alien Tech Used ----------------- None Achievements -------------- You Again Challenges ------------ None Game ------ Seed ZhirovStormCharge Manual? 0 Play Time 00:27:04 Cumulative 7.9 hours Start 2025.11.30 @ 16:38:32 End 2025.11.30 @ 20:56:24 Sessions 2 Manual Loads 0 Difficulty Rogue Special Mode None Game No. 16 Rogue 16 Adventurer 0 Explorer 0 Win Type - Total 0 Types 0/0/0/0/0/0/0/0/0/0 Lore% 4 Gallery% 11 Achievement% 11 Wizard Run 0 Options --------- Layout 1 ASCII 0 Keyboard 0 Movement Mouse Keybinds 0 Fullscreen 1 Font 24/Smallcaps Map View 50x35 Zoom Use 0% Tactical HUD 0 Map Filters NONE Filters NONE Steam 1 RUN: 0e1152f3-5f17-4e8b-a9c2-56b8a32b476f